fUSD/lending_fUSD_20260617
["ID","MTS","AMOUNT","RATE_DAILY","PERIOD"]
[425345367,1781705439000,-303.08,0.00021447,2]
[425345364,1781705439000,-303.08,0.00021396,2]
[425345363,1781705439000,-303.08,0.00021371,2]
[425345361,1781705439000,-303.08,0.00021318,2]
[425345360,1781705439000,-303.08,0.00021291,2]
[425345359,1781705439000,-303.08,0.00021264,2]
[425345358,1781705439000,-303.08,0.00021236,2]
[425345385,1781705439000,-150.99,0.00021757,2]
[425345368,1781705439000,-303.08,0.00021471,2]
[425345391,1781705439000,-6561.79994931,0.00021818,2]
[425345392,1781705439000,-5000.0,0.00021918,2]
[425345387,1781705439000,-1241.7,0.00021757,2]
[425345386,1781705439000,-6722.94,0.00021757,2]
[425345418,1781705439000,-400.0,0.00022284,2]
[425345417,1781705439000,-437.0,0.00022,2]
[425345414,1781705439000,-238.0,0.00022,2]
[425345413,1781705439000,-201.0,0.00022,2]
[425345410,1781705439000,-151.0,0.00022,2]
[425345409,1781705439000,-200.0,0.00021993,2]
[425345412,1781705439000,-160.0,0.00022,2]
[425345411,1781705439000,-239.0,0.00022,2]
[425345408,1781705439000,-151.0,0.00021949,2]
[425345406,1781705439000,-151.0,0.00021949,2]
[425345405,1781705439000,-151.0,0.00021949,2]
[425345407,1781705439000,-151.0,0.00021949,2]
[425345404,1781705439000,-151.0,0.00021949,2]
[425345421,1781705439000,-202.6,0.00022353,2]
[425345400,1781705439000,-151.0,0.00021949,2]
[425345389,1781705439000,-1562.7,0.00021757,2]
[425345388,1781705439000,-1493.15,0.00021757,2]
[425345393,1781705439000,-200.0,0.00021918,2]
[425345402,1781705439000,-151.0,0.00021949,2]
[425345395,1781705439000,-151.0,0.00021949,2]
[425345394,1781705439000,-242.67553138,0.00021949,2]
[425345390,1781705439000,-179.72945911,0.000218,2]
[425345397,1781705439000,-151.0,0.00021949,2]
[425345398,1781705439000,-151.0,0.00021949,2]
[425345399,1781705439000,-151.0,0.00021949,2]
[425345403,1781705439000,-151.0,0.00021949,2]
[425345401,1781705439000,-151.0,0.00021949,2]
[425345396,1781705439000,-151.0,0.00021949,2]
[425345440,1781705440000,-201.0,0.00024,2]
[425345439,1781705440000,-239.0,0.00024,2]
[425345438,1781705440000,-663.7094,0.00024,2]
[425345441,1781705440000,-238.0,0.00024,2]
[425345443,1781705440000,-166.66,0.00024098,30]
[425345455,1781705440000,-240.0,0.00025,2]
[425345446,1781705440000,-202.6,0.00024324,2]
[425345444,1781705440000,-277.06,0.0002411,2]
[425345445,1781705440000,-200.0,0.00024268,2]
[425345447,1781705440000,-549.69666784,0.00024575,2]
[425345436,1781705440000,-6561.79994931,0.00023644,2]
[425345442,1781705440000,-166.0,0.00024007,2]
[425345437,1781705440000,-1649.0925,0.00023756,7]
[425345428,1781705440000,-1357.69138477,0.00023,2]
[425345432,1781705440000,-1000.0,0.00023261,2]
[425345433,1781705440000,-184.73,0.0002329,2]
[425345429,1781705440000,-201.0,0.00023,2]
[425345431,1781705440000,-166.66,0.00023124,30]
[425345430,1781705440000,-238.0,0.00023,2]
[425345425,1781705440000,-291.93,0.00022957,2]
[425345427,1781705440000,-239.0,0.00023,2]
[425345424,1781705440000,-1218.81528936,0.00022756,7]
[425345426,1781705440000,-163.0,0.00023,2]
[425345423,1781705440000,-200.0,0.00022751,2]
[425345422,1781705440000,-316.64,0.00022466,2]
[425345449,1781705440000,-2000.0,0.00024602,7]
[425345434,1781705440000,-200.0,0.0002351,2]
[425345448,1781705440000,-166.66,0.00024585,30]
[425345435,1781705440000,-166.66,0.00023611,30]
[425345451,1781705440000,-500.0,0.00024999,2]
[425345477,1781705440000,-150.0,0.00027099,7]
[425345479,1781705440000,-150.0,0.00027099,7]
[425345478,1781705440000,-150.0,0.00027099,7]
[425345476,1781705440000,-150.0,0.00027099,7]
[425345475,1781705440000,-150.0,0.00027099,7]
[425345473,1781705440000,-1139.34532977,0.00027,2]
[425345474,1781705440000,-150.0,0.00027099,7]
[425345472,1781705440000,-163.03603452,0.00026994,7]
[425345470,1781705440000,-153.40978027,0.00026994,7]
[425345471,1781705440000,-155.74329102,0.00026994,7]
[425345464,1781705440000,-27491.74252932,0.00026,10]
[425345469,1781705440000,-159.62685097,0.00026994,7]
[425345468,1781705440000,-200.0,0.00026543,2]
[425345480,1781705440000,-150.0,0.00027099,7]
[425345450,1781705440000,-1000.0,0.00024658,2]
[425345465,1781705440000,-4290.0,0.000262,5]
[425345467,1781705440000,-150.0,0.0002654,5]
[425345453,1781705440000,-74194.25626642,0.00025,2]
[425345454,1781705440000,-205.0,0.00025,2]
[425345452,1781705440000,-255.0,0.00025,2]
[425345458,1781705440000,-166.66,0.00025072,30]
[425345461,1781705440000,-420.5113501,0.00025583,2]
[425345456,1781705440000,-176.0,0.00025,2]
[425345462,1781705440000,-200.0,0.00025785,2]
[425345459,1781705440000,-6561.79994931,0.00025471,2]
[425345460,1781705440000,-166.66,0.00025559,30]
[425345463,1781705440000,-500.0,0.00025999,2]
[425345466,1781705440000,-202.6,0.00026296,2]
[425345457,1781705440000,-200.0,0.00025026,2]
[425345513,1781705441000,-1852.02,0.000274,7]
[425345510,1781705441000,-1000.0,0.00027397,20]
[425345515,1781705441000,-562.55,0.000274,2]
[425345511,1781705441000,-202.47933573,0.00027397,7]
[425345518,1781705441000,-562.55,0.000274,2]
[425345517,1781705441000,-562.55,0.000274,2]
[425345516,1781705441000,-562.55,0.000274,2]
[425345520,1781705441000,-150.0,0.00027453,7]
[425345521,1781705441000,-150.0,0.00027475,7]
[425345522,1781705441000,-150.0,0.00027475,7]
[425345512,1781705441000,-150.0,0.000274,7]
[425345519,1781705441000,-562.55,0.000274,2]
[425345508,1781705441000,-1500.0,0.00027397,2]
[425345494,1781705441000,-150.0,0.00027276,7]
[425345506,1781705441000,-526.22257879,0.00027397,2]
[425345507,1781705441000,-274.44,0.00027397,2]
[425345505,1781705441000,-500.0,0.00027397,2]
[425345504,1781705441000,-299.85582701,0.00027397,2]
[425345502,1781705441000,-200.0,0.00027301,2]
[425345496,1781705441000,-6561.79994931,0.00027297,2]
[425345499,1781705441000,-150.0,0.00027299,7]
[425345503,1781705441000,-150.0,0.00027364,7]
[425345491,1781705441000,-150.0,0.00027187,7]
[425345485,1781705441000,-150.0,0.00027099,7]
[425345482,1781705441000,-150.0,0.00027099,7]
[425345488,1781705441000,-500.0,0.00027137,2]
[425345524,1781705441000,-150.0,0.000275,7]
[425345509,1781705441000,-410.70721164,0.00027397,2]
[425345523,1781705441000,-500.0,0.000275,7]
[425345514,1781705441000,-1408.38,0.000274,7]
[425345527,1781705441000,-150.0,0.0002763,7]
[425345529,1781705441000,-150.0,0.00027701,7]
[425345555,1781705441000,-311.48658204,0.00028274,7]
[425345554,1781705441000,-306.81956054,0.00028274,7]
[425345552,1781705441000,-232.52584202,0.00028274,7]
[425345551,1781705441000,-319.25370194,0.00028274,7]
[425345544,1781705441000,-150.0,0.00028161,30]
[425345550,1781705441000,-202.6,0.00028267,2]
[425345543,1781705441000,-150.0,0.00028102,30]
[425345547,1781705441000,-174.16862845,0.00028228,2]
[425345548,1781705441000,-152.0,0.00028243,3]
[425345546,1781705441000,-150.0,0.00028228,30]
[425345545,1781705441000,-150.0,0.00028228,30]
[425345549,1781705441000,-150.0,0.0002825,30]
[425345542,1781705441000,-150.0,0.00028073,30]
[425345535,1781705441000,-150.0,0.00027851,7]
[425345553,1781705441000,-211.1129321,0.00028274,7]
[425345534,1781705441000,-150.0,0.00027851,7]
[425345541,1781705441000,-200.0,0.0002806,2]
[425345525,1781705441000,-150.0,0.00027541,7]
[425345531,1781705441000,-166.0,0.00027702,3]
[425345530,1781705441000,-150.0,0.00027701,7]
[425345532,1781705441000,-150.0,0.00027719,7]
[425345538,1781705441000,-500.0,0.00027963,2]
[425345526,1781705441000,-168.0,0.00027602,5]
[425345539,1781705441000,-150.0,0.00027984,7]
[425345533,1781705441000,-150.0,0.00027807,7]
[425345536,1781705441000,-150.0,0.00027896,7]
[425345540,1781705441000,-150.0,0.00028002,7]
[425345528,1781705441000,-2000.0,0.00027681,7]
[425345537,1781705441000,-150.0,0.00027902,7]
[425345583,1781705442000,-150.0,0.00028427,30]
[425345593,1781705442000,-1000.0,0.00028514,2]
[425345592,1781705442000,-150.0,0.00028504,30]
[425345584,1781705442000,-1000.0,0.00028427,2]
[425345586,1781705442000,-1000.0,0.00028452,2]
[425345587,1781705442000,-1000.0,0.00028465,2]
[425345590,1781705442000,-180.59909494,0.00028501,2]
[425345589,1781705442000,-1000.0,0.00028489,2]
[425345588,1781705442000,-1000.0,0.00028477,2]
[425345591,1781705442000,-1000.0,0.00028502,2]
[425345585,1781705442000,-1000.0,0.0002844,2]
[425345597,1781705442000,-1000.0,0.00028539,2]
[425345594,1781705442000,-150.0,0.00028516,30]
[425345603,1781705442000,-1000.0,0.00028601,2]
[425345604,1781705442000,-150.0,0.00028604,30]
[425345599,1781705442000,-1000.0,0.00028564,2]
[425345596,1781705442000,-160.0,0.0002853,3]
[425345598,1781705442000,-1000.0,0.00028552,2]
[425345602,1781705442000,-621.9152,0.00028595,2]
[425345601,1781705442000,-1000.0,0.00028589,2]
[425345600,1781705442000,-1000.0,0.00028577,2]
[425345581,1781705442000,-1000.0,0.00028402,2]
[425345606,1781705442000,-150.0,0.00028604,30]
[425345595,1781705442000,-1000.0,0.00028527,2]
[425345580,1781705442000,-12622.6744936,0.000284,2]
[425345569,1781705442000,-404.95867145,0.00028278,7]
[425345578,1781705442000,-1000.0,0.00028377,2]
[425345608,1781705442000,-150.0,0.00028604,30]
[425345556,1781705442000,-238.65219837,0.00028274,2]
[425345560,1781705442000,-244.97978293,0.00028274,7]
[425345561,1781705442000,-243.20269581,0.00028274,7]
[425345559,1781705442000,-224.42460292,0.00028274,7]
[425345557,1781705442000,-326.07206905,0.00028274,7]
[425345558,1781705442000,-207.91672601,0.00028274,7]
[425345562,1781705442000,-237.4914839,0.00028274,7]
[425345563,1781705442000,-206.38271163,0.00028274,7]
[425345568,1781705442000,-244.44379823,0.00028278,7]
[425345572,1781705442000,-1000.0,0.00028315,2]
[425345570,1781705442000,-150.0,0.00028303,30]
[425345571,1781705442000,-150.0,0.00028303,30]
[425345566,1781705442000,-244.55456556,0.00028278,7]
[425345564,1781705442000,-242.72967099,0.00028277,7]
[425345567,1781705442000,-243.76040042,0.00028278,7]
[425345565,1781705442000,-232.1796831,0.00028277,7]
[425345582,1781705442000,-1000.0,0.00028415,2]
[425345574,1781705442000,-150.0,0.00028338,30]
[425345573,1781705442000,-1000.0,0.00028328,2]
[425345576,1781705442000,-1000.0,0.00028352,2]
[425345577,1781705442000,-1000.0,0.00028365,2]
[425345575,1781705442000,-1000.0,0.0002834,2]
[425345579,1781705442000,-1000.0,0.0002839,2]
[425345605,1781705442000,-150.0,0.00028604,30]
[425345638,1781705442000,-562.19,0.0002871,2]
[425345614,1781705442000,-2064.38,0.0002863,30]
[425345656,1781705442000,-410.70721164,0.00028766,2]
[425345657,1781705442000,-500.0,0.00028767,2]
[425345658,1781705442000,-218.56443812,0.00028767,2]
[425345648,1781705442000,-1000.0,0.00028751,2]
[425345646,1781705442000,-1000.0,0.00028738,2]
[425345644,1781705442000,-1000.0,0.00028726,2]
[425345660,1781705442000,-1000.0,0.00028776,2]
[425345650,1781705442000,-290.25,0.00028756,7]
[425345662,1781705442000,-150.0,0.00028781,30]
[425345664,1781705442000,-290.25,0.00028788,30]
[425345665,1781705442000,-274.7,0.00028788,30]
[425345663,1781705442000,-300.55792103,0.00028783,2]
[425345666,1781705442000,-1000.0,0.00028788,2]
[425345668,1781705442000,-973.73,0.00028797,7]
[425345670,1781705442000,-200.79,0.00028797,7]
[425345667,1781705442000,-500.0,0.00028789,3]
[425345671,1781705442000,-201.13,0.00028797,7]
[425345669,1781705442000,-2064.38,0.00028797,7]
[425345673,1781705442000,-999.42,0.00028797,7]
[425345672,1781705442000,-2078.14,0.00028797,7]
[425345674,1781705442000,-1463.51939293,0.000288,2]
[425345613,1781705442000,-973.73,0.0002863,30]
[425345676,1781705442000,-196.12000946,0.000288,2]
[425345653,1781705442000,-274.7,0.00028756,7]
[425345654,1781705442000,-1000.0,0.00028763,2]
[425345642,1781705442000,-274.7,0.00028725,2]
[425345632,1781705442000,-150.0,0.00028693,30]
[425345610,1781705442000,-1000.0,0.00028626,2]
[425345639,1781705442000,-374.8,0.0002871,2]
[425345611,1781705442000,-515.84,0.0002863,2]
[425345612,1781705442000,-290.25,0.0002863,2]
[425345609,1781705442000,-1000.0,0.00028614,2]
[425345615,1781705442000,-200.79,0.0002863,30]
[425345617,1781705442000,-2078.14,0.0002863,30]
[425345626,1781705442000,-1000.0,0.00028664,2]
[425345616,1781705442000,-201.13,0.0002863,30]
[425345618,1781705442000,-999.42,0.0002863,30]
[425345628,1781705442000,-1000.0,0.00028676,2]
[425345619,1781705442000,-274.7,0.0002863,2]
[425345607,1781705442000,-150.0,0.00028604,30]
[425345620,1781705442000,-1000.0,0.00028639,2]
[425345624,1781705442000,-274.7,0.00028661,7]
[425345634,1781705442000,-274.7,0.00028693,30]
[425345641,1781705442000,-290.25,0.00028725,2]
[425345633,1781705442000,-290.25,0.00028693,30]
[425345640,1781705442000,-1000.0,0.00028714,2]
[425345636,1781705442000,-1000.0,0.00028701,2]
[425345630,1781705442000,-1000.0,0.00028689,2]
[425345621,1781705442000,-1000.0,0.00028651,2]
[425345622,1781705442000,-290.25,0.00028661,7]
[425345637,1781705442000,-150.0,0.00028704,30]
[425345705,1781705443000,-200.0,0.000289,2]
[425345704,1781705443000,-151.0,0.000289,7]
[425345708,1781705443000,-150.0,0.00028905,30]
[425345707,1781705443000,-150.0,0.00028905,30]
[425345710,1781705443000,-290.25,0.00028915,2]
[425345709,1781705443000,-1000.0,0.00028913,2]
[425345711,1781705443000,-1000.0,0.00028925,2]
[425345706,1781705443000,-1000.0,0.000289,2]
[425345714,1781705443000,-1000.0,0.0002895,2]
[425345715,1781705443000,-157.0,0.00028954,30]
[425345713,1781705443000,-290.25,0.00028947,7]
[425345719,1781705443000,-153.0,0.00028957,30]
[425345717,1781705443000,-151.0,0.00028954,30]
[425345716,1781705443000,-152.0,0.00028954,30]
[425345718,1781705443000,-239.0,0.00028954,30]
[425345721,1781705443000,-151.0,0.00028957,30]
[425345723,1781705443000,-152.0,0.00028957,30]
[425345722,1781705443000,-155.0,0.00028957,30]
[425345725,1781705443000,-152.0,0.00028957,30]
[425345724,1781705443000,-201.0,0.00028957,30]
[425345720,1781705443000,-153.0,0.00028957,30]
[425345703,1781705443000,-151.0,0.000289,7]
[425345712,1781705443000,-1000.0,0.00028938,2]
[425345701,1781705443000,-1408.38,0.000289,7]
[425345677,1781705443000,-1000.0,0.00028801,2]
[425345699,1781705443000,-271238.2612588,0.000289,2]
[425345727,1781705443000,-157.0,0.00028957,30]
[425345678,1781705443000,-1000.0,0.00028813,2]
[425345682,1781705443000,-1000.0,0.00028838,2]
[425345680,1781705443000,-274.7,0.0002882,2]
[425345679,1781705443000,-290.25,0.0002882,2]
[425345681,1781705443000,-1000.0,0.00028826,2]
[425345683,1781705443000,-1000.0,0.00028851,2]
[425345684,1781705443000,-290.25,0.00028852,7]
[425345687,1781705443000,-1000.0,0.00028875,2]
[425345685,1781705443000,-1000.0,0.00028863,2]
[425345691,1781705443000,-500.0,0.00028879,2]
[425345688,1781705443000,-500.0,0.00028879,7]
[425345694,1781705443000,-71823.96902131,0.0002888,60]
[425345689,1781705443000,-500.0,0.00028879,7]
[425345690,1781705443000,-500.0,0.00028879,2]
[425345693,1781705443000,-274.7,0.00028852,7]
[425345692,1781705443000,-332218.79192775,0.0002888,60]
[425345686,1781705443000,-150.0,0.0002887,30]
[425345695,1781705443000,-290.25,0.00028883,30]
[425345700,1781705443000,-1852.02,0.000289,7]
[425345698,1781705443000,-500.0,0.00028899,2]
[425345697,1781705443000,-330.1597687,0.00028899,7]
[425345702,1781705443000,-200.0,0.000289,2]
[425345696,1781705443000,-1000.0,0.00028888,2]
[425345736,1781705443000,-150.0,0.0002897,2]
[425345741,1781705443000,-150.0,0.0002898,30]
[425345730,1781705443000,-973.73,0.00028964,2]
[425345759,1781705443000,-250.01993717,0.00029,2]
[425345767,1781705443000,-151.0,0.00029,7]
[425345758,1781705443000,-191.80540898,0.00029,2]
[425345760,1781705443000,-151.0,0.00029,7]
[425345762,1781705443000,-437.0,0.00029,7]
[425345763,1781705443000,-10674.78065005,0.00029,2]
[425345761,1781705443000,-152.853552,0.00029,7]
[425345764,1781705443000,-477.663597,0.00029,7]
[425345765,1781705443000,-151.0,0.00029,7]
[425345766,1781705443000,-477.663597,0.00029,7]
[425345755,1781705443000,-517.02795585,0.00029,2]
[425345770,1781705443000,-440.15009,0.00029,7]
[425345769,1781705443000,-477.663597,0.00029,7]
[425345774,1781705443000,-5788.94,0.00029,2]
[425345773,1781705443000,-440.15009,0.00029,7]
[425345771,1781705443000,-440.15009,0.00029,7]
[425345772,1781705443000,-440.15009,0.00029,7]
[425345778,1781705443000,-230.471178,0.00029,7]
[425345775,1781705443000,-151.0,0.00029,7]
[425345776,1781705443000,-151.0,0.00029,7]
[425345779,1781705443000,-282.899321,0.00029,7]
[425345726,1781705443000,-238.0,0.00028957,30]
[425345777,1781705443000,-282.899321,0.00029,7]
[425345754,1781705443000,-1252.25327799,0.00029,7]
[425345768,1781705443000,-477.663597,0.00029,7]
[425345752,1781705443000,-220.0442745,0.00029,2]
[425345753,1781705443000,-73441.60024618,0.00029,2]
[425345729,1781705443000,-1000.0,0.00028963,2]
[425345731,1781705443000,-2064.38,0.00028964,2]
[425345728,1781705443000,-150.0,0.00028958,30]
[425345734,1781705443000,-2078.14,0.00028964,2]
[425345735,1781705443000,-999.42,0.00028964,2]
[425345733,1781705443000,-201.13,0.00028964,2]
[425345737,1781705443000,-40556.52396179,0.0002897,6]
[425345739,1781705443000,-290.25,0.00028979,30]
[425345738,1781705443000,-1000.0,0.00028975,2]
[425345740,1781705443000,-150.0,0.0002898,30]
[425345742,1781705443000,-500.0,0.00028987,2]
[425345732,1781705443000,-200.79,0.00028964,2]
[425345743,1781705443000,-1000.0,0.00028988,2]
[425345750,1781705443000,-431.00079052,0.00029,2]
[425345751,1781705443000,-2503.51031067,0.00029,2]
[425345749,1781705443000,-7999.999999,0.00029,2]
[425345748,1781705443000,-11218.76700992,0.00029,2]
[425345756,1781705443000,-151.0,0.00029,7]
[425345757,1781705443000,-151.0,0.00029,7]
[425345746,1781705443000,-42528.23917717,0.00029,2]
[425345745,1781705443000,-500.0,0.00028999,7]
[425345744,1781705443000,-11234.03897222,0.0002899,7]
[425345747,1781705443000,-589.48,0.00029,2]
[425345815,1781705444000,-290.25,0.00029074,30]
[425345811,1781705444000,-1027.10558,0.00029,2]
[425345809,1781705444000,-221.979776,0.00029,7]
[425345814,1781705444000,-150.0,0.00029047,30]
[425345812,1781705444000,-290.25,0.0002901,2]
[425345816,1781705444000,-589.48,0.000291,2]
[425345818,1781705444000,-1030.0,0.00029102,2]
[425345813,1781705444000,-290.25,0.00029042,7]
[425345817,1781705444000,-5788.94,0.000291,2]
[425345822,1781705444000,-500.0,0.00029102,2]
[425345823,1781705444000,-500.0,0.00029102,2]
[425345820,1781705444000,-156.80870372,0.00029102,2]
[425345832,1781705444000,-152.0,0.00029102,2]
[425345819,1781705444000,-663.5190383,0.00029102,2]
[425345824,1781705444000,-500.0,0.00029102,2]
[425345825,1781705444000,-152.0,0.00029102,2]
[425345827,1781705444000,-203.56087746,0.00029102,2]
[425345826,1781705444000,-646.65982734,0.00029102,2]
[425345833,1781705444000,-500.0,0.00029102,2]
[425345830,1781705444000,-152.0,0.00029102,2]
[425345828,1781705444000,-500.0,0.00029102,2]
[425345829,1781705444000,-578.20924308,0.00029102,2]
[425345834,1781705444000,-152.0,0.00029102,2]
[425345810,1781705444000,-221.979776,0.00029,7]
[425345821,1781705444000,-174.61919141,0.00029102,2]
[425345808,1781705444000,-221.979776,0.00029,7]
[425345781,1781705444000,-282.899321,0.00029,7]
[425345807,1781705444000,-221.979776,0.00029,7]
[425345780,1781705444000,-230.471178,0.00029,7]
[425345783,1781705444000,-282.899321,0.00029,7]
[425345782,1781705444000,-230.471178,0.00029,7]
[425345836,1781705444000,-151.0,0.00029102,2]
[425345784,1781705444000,-230.471178,0.00029,7]
[425345786,1781705444000,-170.09905,0.00029,7]
[425345787,1781705444000,-170.09905,0.00029,7]
[425345785,1781705444000,-170.09905,0.00029,7]
[425345788,1781705444000,-170.09905,0.00029,7]
[425345789,1781705444000,-151.0,0.00029,7]
[425345790,1781705444000,-170.466344,0.00029,7]
[425345792,1781705444000,-184.290066,0.00029,7]
[425345804,1781705444000,-151.0,0.00029,3]
[425345793,1781705444000,-184.290066,0.00029,7]
[425345791,1781705444000,-184.290066,0.00029,7]
[425345798,1781705444000,-151.0,0.00029,7]
[425345796,1781705444000,-151.0,0.00029,7]
[425345794,1781705444000,-184.290066,0.00029,7]
[425345797,1781705444000,-151.0,0.00029,7]
[425345800,1781705444000,-159.453919,0.00029,7]
[425345799,1781705444000,-159.453919,0.00029,7]
[425345802,1781705444000,-159.453919,0.00029,7]
[425345801,1781705444000,-159.453919,0.00029,7]
[425345805,1781705444000,-151.0,0.00029,7]
[425345806,1781705444000,-151.0,0.00029,7]
[425345803,1781705444000,-151.0,0.00029,3]
[425345795,1781705444000,-160.0,0.00029,30]
[425345846,1781705444000,-151.0,0.00029102,2]
[425345831,1781705444000,-500.0,0.00029102,2]
[425345842,1781705444000,-500.0,0.00029102,2]
[425345868,1781705444000,-465.05168403,0.00029127,7]
[425345869,1781705444000,-216.68686267,0.00029127,7]
[425345872,1781705444000,-202.69981592,0.00029127,7]
[425345871,1781705444000,-422.22586421,0.00029127,7]
[425345874,1781705444000,-232.01294771,0.00029127,7]
[425345882,1781705444000,-249.41930434,0.00029127,2]
[425345875,1781705444000,-233.0234632,0.00029127,7]
[425345873,1781705444000,-460.22934082,0.00029127,7]
[425345879,1781705444000,-467.22987306,0.00029127,7]
[425345876,1781705444000,-213.87711138,0.00029127,5]
[425345878,1781705444000,-217.74934537,0.00029127,7]
[425345880,1781705444000,-214.65472088,0.00029127,7]
[425345862,1781705444000,-210.11468838,0.00029119,7]
[425345881,1781705444000,-218.69658761,0.00029127,7]
[425345883,1781705444000,-226.39764101,0.00029127,2]
[425345884,1781705444000,-165.71292312,0.00029127,7]
[425345885,1781705444000,-236.39581071,0.00029127,5]
[425345887,1781705444000,-477.30439675,0.00029127,2]
[425345886,1781705444000,-225.79632064,0.00029127,7]
[425345889,1781705444000,-225.43118096,0.00029127,2]
[425345892,1781705444000,-234.21723798,0.00029127,7]
[425345890,1781705444000,-223.18085528,0.00029127,7]
[425345891,1781705444000,-489.10810357,0.00029127,7]
[425345888,1781705444000,-206.49069534,0.00029127,7]
[425345893,1781705444000,-218.10456732,0.00029127,7]
[425345835,1781705444000,-500.0,0.00029102,2]
[425345877,1781705444000,-194.47476297,0.00029127,7]
[425345866,1781705444000,-249.22485625,0.00029127,7]
[425345894,1781705444000,-415.83345203,0.00029127,7]
[425345863,1781705444000,-211.70720366,0.00029119,7]
[425345845,1781705444000,-152.0,0.00029102,2]
[425345840,1781705444000,-152.0,0.00029102,2]
[425345837,1781705444000,-152.0,0.00029102,2]
[425345838,1781705444000,-151.0,0.00029102,2]
[425345843,1781705444000,-152.0,0.00029102,2]
[425345839,1781705444000,-500.0,0.00029102,2]
[425345841,1781705444000,-500.0,0.00029102,2]
[425345870,1781705444000,-225.47550499,0.00029127,7]
[425345848,1781705444000,-152.0,0.00029102,2]
[425345858,1781705444000,-216.35119953,0.00029119,7]
[425345847,1781705444000,-500.0,0.00029102,2]
[425345859,1781705444000,-202.46866668,0.00029119,7]
[425345849,1781705444000,-500.0,0.00029102,2]
[425345844,1781705444000,-500.0,0.00029102,2]
[425345851,1781705444000,-500.0,0.00029102,2]
[425345855,1781705444000,-150.0,0.00029106,30]
[425345865,1781705444000,-478.8805529,0.00029127,7]
[425345867,1781705444000,-245.6203648,0.00029127,7]
[425345864,1781705444000,-6561.79994931,0.00029124,2]
[425345861,1781705444000,-196.40070378,0.00029119,7]
[425345860,1781705444000,-211.4643274,0.00029119,7]
[425345854,1781705444000,-290.25,0.00029105,2]
[425345856,1781705444000,-216.48851867,0.00029119,7]
[425345853,1781705444000,-152.0,0.00029102,2]
[425345850,1781705444000,-152.0,0.00029102,2]
[425345852,1781705444000,-152.0,0.00029102,2]
[425345857,1781705444000,-204.73440241,0.00029119,7]
[425345931,1781705445000,-202.62900276,0.00029131,7]
[425345932,1781705445000,-168.11189665,0.00029131,7]
[425345940,1781705445000,-999.42,0.00029132,30]
[425345938,1781705445000,-201.13,0.00029132,30]
[425345934,1781705445000,-193.2779557,0.00029131,7]
[425345927,1781705445000,-487.52080083,0.00029131,7]
[425345929,1781705445000,-213.15490276,0.00029131,7]
[425345926,1781705445000,-219.40493583,0.00029131,7]
[425345925,1781705445000,-281.77367428,0.00029131,7]
[425345924,1781705445000,-228.60821958,0.00029131,7]
[425345936,1781705445000,-2064.38,0.00029132,30]
[425345930,1781705445000,-607.43800718,0.00029131,7]
[425345949,1781705445000,-156.80870372,0.00029212,2]
[425345935,1781705445000,-973.73,0.00029132,30]
[425345933,1781705445000,-224.48894714,0.00029131,7]
[425345937,1781705445000,-200.79,0.00029132,30]